Cogmind - Beta 16.1 @@@ ROGUE MODE // 2026.03.01 @ 00:24:56 Player: Krysmphoenix Result: Destroyed by as-21804 with Assembled Heavy Rifle Performance ------------- Evolutions (0) 0 Regions Visited (4) 800 Robots Destroyed (28) 140 Value Destroyed (546) 546 Prototype IDs (0) 0 Alien Tech Used (0) 0 Bonus (7) 7 TOTAL SCORE: 1493 Bonus ------- Follower Combat Kills 7 Cogmind --------- Core Integrity 0/250 Matter 281/300 Energy 87/100 System Corruption 4% Temperature Warm (115) Movement Flying (40) Location -9/Mines Parts ------- > --- POWER (1) -------- (None) > --- PROPULSION (2) --- Flight Unit > --- UTILITY (2) ------ Targeting Computer Targeting Computer > --- WEAPON (2) ------- Particle Gun > --- INVENTORY (5) ---- Flight Unit Flight Unit EM Pulse Cannon Improved Light Cannon Peak State ------------ > --- POWER ------------ Light Deuterium Engine > --- PROPULSION ------- Improved Hover Unit Improved Hover Unit > --- UTILITY ---------- Targeting Computer Targeting Computer > --- WEAPON ----------- Medium Laser Field Laser > --- INVENTORY -------- Improved Hover Unit Improved Hover Unit Tractor Beam Light Cannon [Rating: 13] Favorites ----------- Power Light Deuterium Engine Engine Light Deuterium Engine Propulsion Improved Hover Unit Wheel Wheel Hover Unit Improved Hover Unit Flight Unit Flight Unit Utility Targeting Computer Device Seismic Detector Storage Small Storage Unit Processor Targeting Computer Weapon Medium Laser Energy Gun Medium Laser Energy Cannon EM Pulse Cannon Ballistic Cannon Improved Light Cannon Build | -11 -10 -10 -10 -9 ------- Run | Yrd Mat Min Exi Min Slots Evolved . | . . . . . Power . | . . . . . Propulsion . | . . . . . Utility . | . . . . . Weapon . | . . . . . Parts Attached 29 | 9 8 2 . 10 Power 5 | 1 1 1 . 2 Engine 5 | 1 1 1 . 2 Core . | . . . . . Reactor . | . . . . . Propulsion 11 | 3 3 . . 5 Treads . | . . . . . Leg . | . . . . . Wheel 4 | 3 1 . . . Hover 4 | . 2 . . 2 Flight 3 | . . . . 3 Utility 5 | 3 2 . . . Device 2 | 2 . . . . Storage 1 | 1 . . . . Processor 2 | . 2 . . . Hackware . | . . . . . Protection . | . . . . . Artifact . | . . . . . Weapon 8 | 2 2 1 . 3 Energy Gun 6 | 2 2 1 . 1 Energy Cannon 1 | . . . . 1 Ballistic Gun . | . . . . . Ballistic Cannon 1 | . . . . 1 Launcher . | . . . . . Special Weapon . | . . . . . Impact Weapon . | . . . . . Slashing Weapon . | . . . . . Piercing Weapon . | . . . . . Special Melee Weapon . | . . . . . Unidentified Prototypes . | . . . . . Parts Lost 11 | . 2 1 . 8 Power 4 | . . 1 . 3 Propulsion 4 | . . . . 4 Utility . | . . . . . Weapon 3 | . 2 . . 1 Highest Loss Streak 4 | . 2 1 . 4 To Critical Strikes . | . . . . . Average Backups 5 | 4 6 5 5 4 Power . | 1 . . . . Propulsion 2 | 2 2 2 2 1 Utility . | . 1 1 1 . Weapon 1 | . 1 1 2 2 Tool/Special . | . . . . . Unused Backups 17 | 3 9 1 . 4 Power 1 | . 1 . . . Propulsion 7 | 2 3 . . 2 Utility 5 | 1 3 . . 1 Weapon 4 | . 2 1 . 1 Tool/Special . | . . . . . Average Slot Usage (%) 94 | . 96 99 100 84 Engine 13 | . 14 13 14 11 Wheel 7 | . 24 . . . Hover 14 | . 3 28 28 7 Flight 5 | . . . . 19 Device 1 | . 4 . . . Storage 2 | . 6 . . . Processor 24 | . 16 28 28 28 Energy Gun 22 | . 24 27 28 11 Ballistic Cannon 1 | . . . . 5 Peak Build Rating 13 | 9 8 13 13 13 Average Rating 9 | 7 7 12 13 8 On Entrance 8 | . 7 8 13 13 Avg Prop Armor Cover (%) 6 | . . . . 6 Naked Turns . | . . . . . Heaviest Build 15 | 14 15 10 10 10 Greatest Support 26 | 26 20 14 14 14 Greatest Overweight (x) 1 | . . . . 1 Average Overweight (x) . | . . . . . Largest Inventory Capacity 8 | 8 8 5 5 5 Average Capacity 5 | 7 6 5 5 5 Most Carried 8 | 7 8 5 5 5 Average Carried 5 | 4 6 4 5 4 Final Capacity 8 | 8 5 5 5 5 Final Carried 6 | 6 5 5 5 4 Class Distribution -------------------- 100% | Mutant Dominant Class ---------------- Mutant | -10/Materials Mutant | -10/Mines Mutant | -10/Exiles Mutant | -9/Mines Resources | -11 -10 -10 -10 -9 ----------- Run | Yrd Mat Min Exi Min Matter Collected 616 | 280 89 38 . 209 Remotely . | . . . . . Salvage Created 847 | 200 441 84 . 122 Parts 66 | 16 33 5 . 12 Haulers Intercepted . | . . . . . Recyclers Shooed 1 | . . 1 . . Parts Field Recycled . | . . . . . Retrieved Matter . | . . . . . Parts Self-Destructed . | . . . . . Prevented . | . . . . . Parts Restored . | . . . . . Kills | -11 -10 -10 -10 -9 ------- Run | Yrd Mat Min Exi Min Combat Hostiles Destroyed 25 | . 13 2 . 10 Guns 22 | . 13 2 . 7 Cannons 3 | . . . . 3 Classes Destroyed 7 | 3 3 . . 1 Worker 1 | 1 . . . . Tunneler 4 | 4 . . . . Recycler 1 | 1 . . . . Watcher 1 | . 1 . . . Swarmer 12 | . 6 . . 6 Grunt 9 | . 7 2 . . Assembled 4 | . . . . 4 Best Kill Streak 4 | 2 4 2 . 3 Combat Bots Only 4 | . 4 2 . 3 Max Kills in Single Turn 2 | 1 1 1 . 2 Gunslinging 1 | . . . . 1 Exploded . | . . . . . Melee . | . . . . . Uniques/NPCs Destroyed . | . . . . . Combat | -11 -10 -10 -10 -9 -------- Run | Yrd Mat Min Exi Min Hostile Shots Fired 119 | . 37 5 . 77 Missed 36 | . 9 1 . 26 Hits 83 | . 28 4 . 51 Projectile 83 | . 28 4 . 51 AOE 5 | . . . . 5 Critical Strikes 2 | . 1 . . 1 Part Disruptions 1 | . . . . 1 Damage Taken 1133 | 16 333 89 . 695 Core 268 | . 88 13 . 167 Absorbed by Shields . | . . . . . Core Remaining (%) 100 | 100 . . . . Volleys Fired 101 | 15 30 5 . 51 Largest 2 | 2 2 2 . 2 Hottest 113 | 80 80 113 . 113 Shots Fired 155 | 30 53 10 1 61 Gun 134 | 30 53 10 1 40 Cannon 21 | . . . . 21 Launcher . | . . . . . Special . | . . . . . Kinetic 21 | . . . . 21 Thermal 73 | 15 7 10 1 40 Explosive . | . . . . . Electromagnetic 61 | 15 46 . . . Robot Hit Streak 8 | 5 8 5 . 4 Robot Miss Streak 8 | 4 3 2 . 8 Penetration Max . | . . . . . Secondary Targets 3 | . 1 . . 2 Max Gunslinging Chain 1 | . 1 . . 1 Shots Hit Robots 78 | 16 34 7 . 21 Core Hits 40 | 6 21 3 . 10 Critical Kills . | . . . . . Critical Parts Destroyed . | . . . . . Critical Strikes 4 | 1 . 1 . 2 Burn 3 | . . 1 . 2 Corrupt 1 | 1 . . . . Melee Attacks . | . . . . . Impact . | . . . . . Slashing . | . . . . . Piercing . | . . . . . Sneak Attacks . | . . . . . Combat Hostiles . | . . . . . Follow-up Attacks . | . . . . . Damage Inflicted 1265 | 240 524 122 . 379 Guns 1040 | 207 501 101 . 231 Cannons 148 | . . . . 148 Explosions 56 | 33 23 . . . Melee . | . . . . . Ramming 21 | . . 21 . . Kinetic 148 | . . . . 148 Thermal 532 | 102 98 101 . 231 Explosive . | . . . . . Electromagnetic 564 | 138 426 . . . Impact . | . . . . . Slashing . | . . . . . Piercing . | . . . . . Highest Corruption 4 | . 4 4 4 4 Average Corruption 3 | . 3 4 4 4 Corruption Purged . | . . . . . Corruption Blocked . | . . . . . Effects 30 | . 5 5 4 16 Message Errors 5 | . 2 3 . . Matter Fused 9 | . 1 2 1 5 Heat Flow Errors 4 | . . . . 4 Energy Discharges 5 | . 1 . . 4 Parts Rejected 1 | . . . . 1 Data Loss (minor) 3 | . 1 . 2 . Data Loss (major) 2 | . . . . 2 Misfires 1 | . . . 1 . Overload Shots . | . . . . . Overflow Damage 5 | . . . . 5 Projectiles 5 | . . . . 5 Explosions . | . . . . . Melee . | . . . . . Knockbacks 2 | . . . . 2 Impact . | . . . . . Kinetic 2 | . . . . 2 Secondary . | . . . . . Self-Inflicted Damage 64 | 16 38 10 . . Shots 2 | 1 1 . . . Rammed 2 | . . 2 . . Targets Rammed 2 | . . 2 . . Kicked . | . . . . . Crushed . | . . . . . Highest Temperature 333 | 126 195 333 36 280 Average Temperature 86 | 41 54 169 21 101 Received Heat Transfer 215 | . 102 33 . 80 Siege Activations . | . . . . . Martial Activations . | . . . . . Shielding Activations . | . . . . . Robots Disrupted . | . . . . . Combat Hostiles . | . . . . . Robots Corrupted . | . . . . . Combat Hostiles . | . . . . . Parts Fried 1 | . 1 . . . Impact Corruptions . | . . . . . Robots Melted . | . . . . . Combat Hostiles . | . . . . . Parts Melted 1 | . 1 . . . Heat Transferred 1508 | 200 272 333 . 703 Parts Sabotaged . | . . . . . Parts Stolen . | . . . . . Parts Stripped . | . . . . . Power Chain Reactions 2 | 1 1 . . . Alert | -11 -10 -10 -10 -9 ------- Run | Yrd Mat Min Exi Min Maximum Alert Level . | . . . . . Low Security (%) 100 | 100 100 100 . 100 Level 1 . | . . . . . Level 2 . | . . . . . Level 3 . | . . . . . Level 4 . | . . . . . Level 5 . | . . . . . High Security . | . . . . . Max Security . | . . . . . Peak Influence 181 | 10 181 59 . 95 Initial 59 | . . 59 . . Average 32 | . 67 12 . 27 Influence Increases 717 | 30 364 50 . 273 Destroy 0b10 Robot/C 440 | . 260 40 . 140 Destroy 0b10 Robot/NC 40 | 30 5 . . 5 Destroy Leader 92 | . 62 10 . 20 Allied During Kill 16 | . . . . 16 Successful Hack 52 | . 37 . . 15 Disable Machine 45 | . . . . 45 Destroy Structure 2 | . . . . 2 Partial Spotted 30 | . . . . 30 Influence Decreases 717 | 30 211 203 . 273 Entered New Map 94 | . . 94 . . Time Decay 486 | 30 191 99 . 166 Lost Part 77 | . 20 10 . 47 Lost Ally 60 | . . . . 60 Squads Dispatched 3 | . 3 . . . Investigation . | . . . . . Extermination . | . . . . . Reinforcement 3 | . 3 . . . Assault . | . . . . . Garrison . | . . . . . Intercept . | . . . . . Searches Triggered . | . . . . . Construction Impeded . | . . . . . Haulers Reinforced . | . . . . . Active Scanning Responses . | . . . . . Cargo Convoy Interrupts . | . . . . . Stealth | -11 -10 -10 -10 -9 --------- Run | Yrd Mat Min Exi Min Distress Signals 1 | . . . . 1 Communications Jammed . | . . . . . Distress Signals . | . . . . . Times Spotted 41 | . 20 2 . 19 Peak Tracking Total 4 | . 4 2 . 4 Tactical Retreats 2 | . . . . 2 Traps | -11 -10 -10 -10 -9 ------- Run | Yrd Mat Min Exi Min Traps Triggered 3 | . 3 . . . Indirectly . | . . . . . Trap Hack Attempts . | . . . . . Triggered . | . . . . . Disarmed . | . . . . . Reprogrammed . | . . . . . Reused . | . . . . . Traps Extracted . | . . . . . Installed . | . . . . . Triggered . | . . . . . Machines | -11 -10 -10 -10 -9 ---------- Run | Yrd Mat Min Exi Min Machines Disabled 3 | . . . . 3 Max in Single Turn 1 | . . . . 1 Machines Repaired . | . . . . . Machines Dismantled . | . . . . . Machines Sabotaged . | . . . . . Overloaded Fab Kills . | . . . . . Hacking | -11 -10 -10 -10 -9 --------- Run | Yrd Mat Min Exi Min Machines Accessed 12 | . 6 1 3 2 Terminals 7 | . 5 . . 2 Fabricators . | . . . . . Repair Stations . | . . . . . Recycling Units 1 | . 1 . . . Scanalyzers . | . . . . . Garrison Access . | . . . . . Total Hacks 22 | . 14 1 3 4 Successful 17 | . 9 1 3 4 Failed 5 | . 5 . . . Catastrophic 1 | . 1 . . . Database Lockouts . | . . . . . Manual 17 | . 13 . . 4 Terminals 17 | . 13 . . 4 Fabricators . | . . . . . Repair Stations . | . . . . . Recycling Units 1 | . 1 . . . Scanalyzers . | . . . . . Garrison Access . | . . . . . Terminal Hacks 5 | . 1 1 3 . Record 3 | . . . 3 . Open Door 1 | . . 1 . . Branch Access Points 1 | . 1 . . . Fabricator Hacks . | . . . . . Repair Station Hacks . | . . . . . Recycling Unit Hacks 1 | . 1 . . . Report Inventory 1 | . 1 . . . Scanalyzer . | . . . . . Garrison Access Hacks . | . . . . . Unauthorized Hacks 11 | . 7 . . 4 Terminals 11 | . 7 . . 4 Assimilate 4 | . 2 . . 2 Botnet 7 | . 5 . . 2 Fabricators . | . . . . . Repair Stations . | . . . . . Recycling Units . | . . . . . Scanalyzers . | . . . . . Garrison Access . | . . . . . Data Cores Recovered . | . . . . . Used . | . . . . . Hacking Detections 7 | . 5 . . 2 Full Trace Events . | . . . . . Feedback Events . | . . . . . Feedback Blocked . | . . . . . Robot Schematics Acquired . | . . . . . Robots Built . | . . . . . Authchips . | . . . . . Time . | . . . . . Total Robot Build Rating . | . . . . . Part Schematics Acquired . | . . . . . Parts Built . | . . . . . Authchips . | . . . . . Time . | . . . . . Total Part Build Rating . | . . . . . Part Studies Acquired . | . . . . . Parts Repaired . | . . . . . Time . | . . . . . Parts Recycled . | . . . . . Recycled Matter . | . . . . . Retrieved Matter . | . . . . . Retrieved Components . | . . . . . Parts Scanalyzed . | . . . . . Part Schematics Acquired . | . . . . . Parts Damaged . | . . . . . Bothacking | -11 -10 -10 -10 -9 ------------ Run | Yrd Mat Min Exi Min Used RIF Installer . | . . . . . Robots Hacked . | . . . . . Non-combat . | . . . . . Combat . | . . . . . Robot Hacks Applied . | . . . . . Relay Couplers Released . | . . . . . Fabnet Peak Effective % . | . . . . . Robots Rewired . | . . . . . Allies Hacked . | . . . . . Hacks Repelled . | . . . . . Allies | -11 -10 -10 -10 -9 -------- Run | Yrd Mat Min Exi Min Total Allies 6 | . . 6 . . Largest Group 6 | . . 6 6 3 Highest-Rated Group 113 | . . 113 113 40 Highest-Rated Ally 31 | . . 31 31 16 Total Orders . | . . . . . Ally Attacks 12 | . . . . 12 Total Damage 156 | . . . . 156 Kills 2 | . . . . 2 Allies Corrupted . | . . . . . Allies Melted . | . . . . . Intel | -11 -10 -10 -10 -9 ------- Run | Yrd Mat Min Exi Min Active Infowar (turns) 292 | 134 158 . . . Terrain 115 | 115 . . . . Seismic 177 | 19 158 . . . Robot Analysis Total . | . . . . . Derelict Logs Recovered 3 | . . 2 . 1 Drone Launches . | . . . . . Drone Recoveries . | . . . . . Exploration | -11 -10 -10 -10 -9 ------------- Run | Yrd Mat Min Exi Min Turns Passed 1949 | 204 524 513 210 498 Spaces Moved 2344 | 157 514 638 266 769 Core 9 | 9 . . . . Treads . | . . . . . Legs . | . . . . . Wheels 535 | 148 387 . . . Hover 1193 | . 127 638 266 162 Flight 607 | . . . . 607 Fastest Speed 37 | 50 56 56 56 37 Average Speed 57 | 81 74 56 56 41 Slowest Speed 120 | 90 80 56 56 120 Overloaded Moves . | . . . . . Propulsion Burnouts . | . . . . . Robots Hopped 1 | . . . . 1 Potential Cave-ins . | . . . . . Cave-ins Triggered . | . . . . . Exploration Rate (%) 64 | 5 83 98 64 73 Regions Visited 4 Branch Regions 3 Pre-discovered Areas 2 | . . 2 . . Known Exits Taken 1 | . 1 . . . Unknown Exits Taken 3 | 1 . 1 1 . Scrap Searched 5 | . . 3 . 2 Spaces Dug . | . . . . . Terrain Destroyed 7 | 5 . . . 2 Melee . | . . . . . Projectile 2 | . . . . 2 AOE 5 | 5 . . . . Terrain Rammed . | . . . . . Walls Destroyed . | . . . . . Machines Disabled . | . . . . . Actions | -11 -10 -10 -10 -9 --------- Run | Yrd Mat Min Exi Min Total 2808 | 204 609 784 326 885 Wait 254 | 1 22 132 61 38 Move 2338 | 156 513 637 265 767 Hop 1 | . . . . 1 Pick Up 50 | 18 18 4 . 10 Fast Attach . | . . . . . Attach 18 | 7 2 2 . 7 Detach 1 | . . . . 1 Swap 13 | 2 6 . . 5 Drop 30 | 5 18 2 . 5 Fire 101 | 15 30 5 . 51 Melee . | . . . . . Ram 2 | . . 2 . . Kick . | . . . . . Crush . | . . . . . Escape Stasis . | . . . . . Rewire . | . . . . . Trap . | . . . . . Miscellaneous . | . . . . . Route ------- -11/Scrapyard -10/Materials (discovered 3 exits: [*Mat x2] / *Min) -10/Mines (discovered 3 exits: [*Mat x2] / *Exi) -10/Exiles (discovered 2 exits: *Min x2) -9/Mines History --------- Turn | Location | Event 6 | -11/Scrapyard | Discovered new exit (range 16) 205 | -11/Scrapyard | Entered Materials 287 | -10/Materials | Discovered new exit (range 12) 300 | -10/Materials | Build established: Mutant 356 | -10/Materials | Identified exit to Mines 641 | -10/Materials | Discovered new exit (range 11) 729 | -10/Materials | Entered Mines 731 | -10/Mines | Met a Derelict who couldn't figure out how to use a Trap Extractor 733 | -10/Mines | Met a Derelict bent on vengeance 760 | -10/Mines | Discovered new exit (range 5) 781 | -10/Mines | Discovered new exit (range 10) 989 | -10/Mines | Learned location of Storage (-9) 999 | -10/Mines | Found a hidden stash of uninstalled traps 1007 | -10/Mines | Received a Mining Laser from a helpful Derelict 1055 | -10/Mines | Assisted by bots powering up and referring to "LRC-V3" 1161 | -10/Mines | Deemed a non-threat by the Exiles lab entrance 1161 | -10/Mines | Discovered new exit (range 5) 1242 | -10/Mines | Entered Exiles 1242 | -10/Exiles | Found Exiles lab abandoned 1242 | -10/Exiles | Accompanied by 6 allies 1251 | -10/Exiles | Discovered new exit (range 15) 1272 | -10/Exiles | Led the pair of lost Derelicts to a safe place 1383 | -10/Exiles | Discovered new exit (range 14) 1452 | -10/Exiles | Entered Mines 1452 | -9/Mines | Accompanied by 3 allies 1477 | -9/Mines | Learned Materials non-interactive machine intel 1516 | -9/Mines | Assembled infested the area 1521 | -9/Mines | Assisted by a Guerilla fighting off Assembled 1538 | -9/Mines | Core integrity fell below 50% 1610 | -9/Mines | Lost 4 parts (1p2n1w) 1917 | -9/Mines | Core integrity fell below 20% 1950 | -9/Mines | Destroyed by as-21804 with Assembled Heavy Rifle Last Messages --------------- 01869_ System corrupted: Matter fused (-6). 01880_ Acquired 11 matter. 01884_ System corrupted: Matter fused (-5). 01894_ as-06637 destroyed. 01897_ Acquired 4 matter. 01897_ Acquired 2 matter. 01905_ Acquired 16 matter. 01906_ System corrupted: Heat flow error (+173). 01912_ as-21804 knocked back. 01913_ Acquired 4 matter. 01923_ System corrupted: Substantial component data lost. 01924_ Lgt. Ion Engine destroyed. 01927_ Dropped Mining Laser. 01928_ Acquired Lgt. Ion Engine. 01931_ Acquired Particle Gun. 01937_ Flight Unit destroyed. 01941_ Lgt. Ion Engine destroyed. 01943_ Flight Unit destroyed. 01946_ as-21804 suffers critical hit (Burn). Map ----- +----------------------------------------------------+ | | | | | | | | | | | | | | | | | ????????????????????????????????????????????? | | ???????????????????#####????????????????????? | | ??????????????????## ###??????????????????? | | ?????????????????## ##?????????????????? | | ????????????????## #?????????????????? | | ???????????????## ##?????????????????? | | ??????????????## """ ###??????????????????? | | ?????????????## """ ##???????????########## | | ???????####### """ #????????????# | | ???????# #???????###### """ """ | | ???????# #### ##???????# """ """ | | ???????# #??## ##????????# ### " " | | ???????# #???### #?????????#%!#?# [% | | ???????# #?????## #?????????#]=#?# | | ???????# #??????# #?????????# #?# | | ???????# #??????# ##????????# #?########## | | ???????# ##?????# ###??????# ##########?? | | ??????## ##????## @ ##?????# #?? | | ?????## ####### #?????# ######## #?? | | ????## #??#### #??????# #?? | | ???## #??# #?????## ##? | | ???# ######## ##??# #????## ## | | ???# ##??# ;#??## ####????# | | ???# #### ### ##?## #??????# | | ???## # #### |#?## ##????## ## | | ????## [! ### #???## ## | | ?????## ### ### =## #??## ### | | ??????## ###?# #?#aa## =%=* #### %### | | ???????" ##???# #?# ! % =*% % %% #?# | | ???????# #?#### #?# ###= =[### ## ##?# | | ???????# #?# #?# #?## ##?# ## #??## | | ???????# #?# ####?# #??# #??# ### ##??## | | ???????# #?# #????# #??# #??# ###= ##?## | | ???????# #?# #??### #??# #### =*%! [#?# | | ???????# #?# #?## #??# =!! %### | | ???????# ### ### #??# %! [ ## | | ???????# ## ## ##?####### = * # | | ???????# # % #???????### # =# | | ??????## "" ##????????### #%%# | | ??????# """ ###???????? #=!# | | ??????# ## """ ##?????# ####[%#### | | ??????## #### ##????# ==%## # | +----------------------------------------------------+ Best States ------------- Heat Dissipation 25 Energy Generation 14 Energy Capacity 250 Matter Stores 300 Matter Capacity 300 Sight Range 16 Terrain Scan Range 16 Terrain Scan Density 10 Evasion (%) 62 Targeting Accuracy 10 Item Schematics ----------------- None Robot Schematics ------------------ None Fabricated ------------ Nothing Repaired ---------- Nothing Studied --------- None Alien Tech Used ----------------- None Achievements -------------- None Challenges ------------ None Game ------ Seed StasisDisruptorCutter Manual? 0 Play Time 00:33:39 Cumulative 12.0 hours Start 2026.02.28 @ 23:55:58 End 2026.03.01 @ 00:24:56 Sessions 1 Manual Loads 0 Difficulty Rogue Special Mode None Game No. 20 Rogue 17 Adventurer 3 Explorer 0 Win Type - Total 1 Types 1/0/0/0/0/0/0/0/0/0 Lore% 11 Gallery% 16 Achievement% 18 Wizard Run 0 Options --------- Layout 1 ASCII 0 Keyboard 0 Movement Numpad Keybinds 0 Fullscreen 2 Font 24/Proggy Map View 50x35 Zoom Use 0% Tactical HUD 1 Map Filters NONE Filters NONE Steam 1 RUN: 6839fae7-2be7-4b23-8ad6-cb0d26a4a001